bitfinex/quotes_ETHUSD_20220212
["timestamp","ask_amount","ask_price","bid_price","bid_amount"]
[1644677426331,0.02832529,2873.1,2872.8,0.00669282]
[1644677426534,0.20222529,2873.1,2872.8,0.00669282]
[1644677427636,0.02832529,2873.1,2872.8,0.00669282]
[1644677427835,1.48164999,2873.0,2872.8,0.00669282]
[1644677428039,0.001,2872.9,2872.8,0.00669282]
[1644677428442,0.001,2872.9,2872.3,0.00174801]
[1644677428636,0.001,2872.9,2872.1,1.66364801]
[1644677430486,0.02832529,2873.1,2872.1,1.66364801]
[1644677430785,0.02832529,2873.1,2872.2,0.00174801]
[1644677430993,1.48160639,2873.0,2872.2,0.00174801]
[1644677431187,0.001,2872.9,2872.2,0.00174801]
[1644677431387,0.02832529,2873.1,2872.2,0.00174801]
[1644677431588,0.02832529,2873.1,2872.2,0.17564801]
[1644677431789,1.48159453,2873.0,2872.2,0.00174801]
[1644677431988,0.001,2872.9,2872.2,0.00174801]
[1644677432388,0.001,2872.9,2872.5,0.00667862]
[1644677432588,0.00260406,2872.8,2872.5,0.00667862]
[1644677433189,0.00260406,2872.8,2872.2,0.00174801]
[1644677433496,0.00260406,2872.8,2872.5,0.00667862]
[1644677434536,0.00260406,2872.8,2872.3,0.00174801]
[1644677434746,1.48428923,2872.8,2872.5,0.00667862]
[1644677434947,1.48428923,2872.8,2871.2,8.3313]
[1644677434948,0.4917989,2872.1,2871.2,8.3313]
[1644677435142,0.4917989,2872.1,2871.8,0.00174817]
[1644677435343,0.4917989,2872.1,2871.2,0.00174817]
[1644677435344,0.01200926,2871.9,2871.2,0.00174817]
[1644677435542,0.01200926,2871.9,2870.7,0.25]
[1644677435543,0.68406916,2871.4,2870.8,0.00174817]
[1644677435943,6.3504,2872.0,2870.6,0.17564817]
[1644677436148,3.15,2871.9,2870.3,4.63534817]
[1644677436541,3.15,2871.9,2870.4,0.04092648]
[1644677436742,3.6741,2871.8,2870.4,0.04092648]
[1644677437044,0.58853992,2871.3,2870.4,0.04092648]
[1644677437242,0.58853992,2871.3,2871.0,0.00198811]
[1644677437883,1.65655169,2871.2,2871.0,0.00198811]
[1644677438080,0.58853992,2871.3,2870.4,0.04092648]
[1644677438281,0.1741,2871.1,2871.0,0.00198251]
[1644677438485,0.1741,2871.2,2871.0,0.00198251]
[1644677438688,3.70046829,2871.2,2871.0,0.00198251]
[1644677438885,0.58853992,2871.3,2871.0,0.00198251]
[1644677439084,0.1741,2871.2,2871.0,0.00198251]
[1644677439286,0.1741,2871.2,2870.1,0.04263175]
[1644677439287,0.1741,2871.2,2870.1,0.29263175]
[1644677439486,3.6741,2871.2,2871.0,0.00198251]
[1644677439688,0.1741,2871.2,2871.0,0.00198251]
[1644677440389,0.1741,2871.2,2870.2,0.04206333]
[1644677440390,2.75,2871.1,2870.2,0.00197706]
[1644677440588,0.1741,2871.0,2870.2,0.00197706]
[1644677440791,0.1741,2871.0,2870.5,0.00793136]
[1644677440989,2.75,2871.1,2870.5,0.00793136]
[1644677441431,0.64102368,2870.6,2870.5,0.00793136]
[1644677441631,0.64102368,2870.6,2870.2,0.00197706]
[1644677441831,0.64102368,2870.6,2869.6,1.20197706]
[1644677442030,0.64102368,2870.6,2870.5,0.00657506]
[1644677442834,0.00252532,2871.1,2869.6,1.20197706]
[1644677443233,0.00252532,2871.1,2870.4,0.00657518]
[1644677444033,0.00252532,2871.1,2869.6,0.20197706]
[1644677444233,0.56950936,2870.6,2869.6,0.20197706]
[1644677444535,0.56950936,2870.6,2870.5,0.00657506]
[1644677444734,0.1741,2871.0,2870.5,0.00657506]
[1644677444992,0.00352532,2871.1,2870.5,0.00657506]
[1644677444993,0.00252532,2871.1,2870.5,0.50857506]
[1644677445388,0.00252532,2871.1,2870.5,0.802]
[1644677445588,0.00252532,2871.1,2870.6,0.3]
[1644677445789,0.00252532,2871.1,2870.7,0.502]
[1644677446188,0.00252532,2871.1,2870.7,0.802]
[1644677447487,0.00256287,2871.1,2870.7,1.102]
[1644677448288,0.00256287,2871.1,2870.7,0.502]
[1644677449834,0.00256287,2871.1,2870.5,1.00657506]
[1644677450036,0.00256287,2871.1,2870.5,1.1741]
[1644677450236,0.00256287,2871.1,2870.5,1.4741]
[1644677450435,0.00256287,2871.1,2870.5,1.43067506]
[1644677450634,0.00256287,2871.1,2870.5,0.18067506]
[1644677450834,0.00256287,2871.1,2870.5,1.18067506]
[1644677451238,0.00256287,2871.1,2870.6,0.502]
[1644677451637,6.287e-05,2871.1,2870.6,0.502]
[1644677451841,8.684e-05,2871.3,2870.7,11.272]
[1644677452043,8.684e-05,2871.3,2871.2,5.0]
[1644677452237,8.684e-05,2871.3,2871.2,12.7402]
[1644677452489,5.45e-06,2871.5,2871.2,12.74547909]
[1644677452685,5.45e-06,2871.5,2871.4,11.272]
[1644677452890,0.1741,2872.9,2871.4,13.87778257]
[1644677453095,0.1741,2872.9,2872.2,5.0]
[1644677453286,0.1741,2872.9,2872.3,0.502]
[1644677453488,0.1741,2872.9,2872.3,1.802]
[1644677453684,0.1741,2872.9,2872.3,2.102]
[1644677453884,0.1741,2872.9,2872.6,0.52621859]
[1644677454091,0.1741,2872.9,2872.7,0.502]
[1644677454284,0.1741,2872.9,2872.8,0.502]
[1644677454685,0.08708216,2872.9,2872.8,0.802]
[1644677454885,0.0257172,2873.1,2872.9,3.3]
[1644677455095,0.0257172,2873.1,2873.0,0.502]
[1644677455291,0.0257172,2873.1,2873.0,1.9759]
[1644677455491,0.0257172,2873.1,2872.8,0.3]
[1644677455492,0.61358764,2872.9,2872.8,0.3]
[1644677455697,0.61358764,2872.9,2872.7,1.3]
[1644677455889,0.61358764,2872.9,2872.8,0.502]
[1644677457131,0.61358764,2872.9,2872.8,4.002]
[1644677457331,0.61358764,2872.9,2872.8,1.802]
[1644677457531,0.61358764,2872.9,2872.8,2.21756379]
[1644677457741,0.0257172,2873.1,2872.9,3.6]
[1644677457934,0.0257172,2873.1,2873.0,0.502]
[1644677458134,0.0257172,2873.1,2873.0,2.2351]
[1644677458934,0.0257172,2873.1,2873.0,1.502]
[1644677460788,0.1749,2874.4,2873.1,3.3]
[1644677460986,1.48131459,2874.3,2873.2,0.502]
[1644677461187,5.9568,2875.0,2873.3,3.91571508]
[1644677461188,0.001,2874.2,2873.3,3.91571508]
[1644677461489,0.1739,2874.6,2873.4,1.502]
[1644677461690,1.4812867,2874.5,2873.4,1.802]
[1644677461891,1.4822867,2874.4,2873.4,1.102]
[1644677462088,1.4822867,2874.3,2873.4,1.102]
[1644677462287,0.001,2874.2,2873.4,1.102]
[1644677462487,1.48127413,2874.9,2873.4,1.102]
[1644677462688,0.001,2874.8,2873.4,1.102]
[1644677463388,0.001,2874.8,2873.5,3.6894739]
[1644677463631,0.001,2874.8,2873.6,0.6759]
[1644677463929,1.48227413,2874.8,2873.6,1.9759]
[1644677464130,1.48227413,2874.7,2873.6,1.9759]
[1644677464331,1.48227413,2874.6,2874.1,0.68624232]
[1644677464537,0.001,2874.5,2874.2,0.502]
[1644677464730,1.48097987,2875.1,2874.2,0.502]
[1644677464935,1.65587987,2875.0,2874.2,0.802]
[1644677465235,0.001,2874.9,2874.2,1.102]
[1644677465435,1.48087937,2875.2,2874.3,6.272]
[1644677465634,0.001,2875.1,2874.4,0.502]
[1644677465837,0.1749,2875.1,2874.4,0.502]
[1644677466034,1.48087937,2875.0,2874.4,0.502]
[1644677466234,0.18439206,2874.9,2874.4,0.502]
[1644677466432,1.48087937,2874.8,2874.0,0.502]
[1644677466734,0.1749,2874.7,2874.0,0.802]
[1644677466932,0.001,2874.7,2874.0,0.802]
[1644677467139,1.48101192,2875.0,2874.0,0.502]
[1644677467390,0.00949231,2874.5,2874.0,0.502]
[1644677467779,0.00949231,2874.5,2874.0,0.802]
[1644677468180,0.00395327,2874.7,2874.0,0.802]
[1644677468382,0.00949241,2874.4,2874.0,0.802]
[1644677469480,0.00395327,2874.7,2874.0,0.802]
[1644677469685,0.00949244,2874.3,2874.0,0.802]
[1644677470685,0.00395327,2874.7,2874.0,0.802]
[1644677470886,0.00949248,2874.3,2874.0,0.802]
[1644677471634,0.00949248,2874.3,2874.1,3.64635231]
[1644677471833,7.46395327,2874.7,2874.0,0.802]
[1644677471834,0.001,2874.6,2874.2,1.502]
[1644677472032,0.001,2874.6,2874.3,0.502]
[1644677472238,0.00199104,2874.4,2874.1,4.1261]
[1644677472432,0.00199104,2874.4,2874.3,6.272]
[1644677472633,0.00199104,2874.4,2874.3,6.9479]
[1644677472932,0.00199104,2874.4,2874.3,7.9479]
[1644677474332,0.00199104,2874.4,2874.3,7.774]
[1644677474533,0.00199104,2874.4,2874.3,6.774]
[1644677474989,0.00199104,2874.4,2874.3,7.774]
[1644677475190,0.00751288,2874.5,2874.3,7.774]
[1644677475191,3.92e-06,2874.5,2874.3,7.774]
[1644677475390,0.1739,2876.1,2874.4,7.4459]
[1644677475589,1.48067973,2876.0,2874.8,6.272]
[1644677475789,0.03002821,2876.2,2874.9,1.6758]
[1644677475988,1.48058524,2876.1,2874.9,5.7533]
[1644677476188,0.1738,2876.0,2874.9,9.2938]
[1644677476389,0.03002821,2876.2,2874.9,9.2938]
[1644677476588,0.00380481,2876.4,2874.9,9.2938]
[1644677476589,1.48050709,2876.1,2874.9,9.2938]
[1644677476890,0.00380481,2876.2,2874.9,9.2938]
[1644677477292,0.1738,2876.4,2874.9,9.2938]
[1644677477293,1.65809213,2876.4,2874.9,9.2938]
[1644677477488,1.48048732,2876.3,2874.9,12.98396464]
[1644677477689,0.17760481,2876.4,2874.9,12.98396464]
[1644677477690,0.00380481,2876.2,2874.9,12.98396464]
[1644677477890,0.00380481,2876.3,2875.1,0.67259446]
[1644677478089,0.00750697,2875.7,2875.2,0.502]
[1644677478934,0.00380481,2876.3,2875.2,0.502]
[1644677479334,0.00949889,2875.6,2875.2,0.502]
[1644677480336,0.00380481,2876.4,2875.2,0.502]
[1644677480538,0.00949893,2875.5,2875.2,4.11544827]
[1644677480736,0.00949893,2875.5,2875.2,0.502]
[1644677480938,0.00949893,2875.5,2875.3,1.0]
[1644677481138,0.00949893,2875.5,2875.4,10.88056409]
[1644677481139,9.893e-05,2875.5,2875.4,10.88056409]
[1644677481336,9.893e-05,2875.5,2875.4,11.18056409]
[1644677481537,0.17760481,2876.8,2875.4,12.35265538]
[1644677481739,1.48032216,2876.7,2875.5,6.272]
[1644677481937,0.00380481,2876.6,2875.6,4.35067531]
[1644677482137,0.00380481,2876.6,2875.7,0.3]
[1644677482397,0.00380481,2876.6,2875.8,0.6758]
[1644677482590,0.1738,2876.8,2875.8,0.6758]
[1644677482591,0.00380481,2876.7,2876.0,0.65504932]
[1644677482783,0.00380481,2876.7,2876.1,0.502]
[1644677482985,0.00750284,2876.3,2876.1,0.502]
[1644677483386,0.00750284,2876.3,2876.1,0.802]
[1644677483584,0.00750284,2876.3,2876.1,1.102]
[1644677483786,0.00380481,2876.7,2876.1,1.102]
[1644677483988,0.00380481,2876.7,2876.1,2.1577]
[1644677484286,1.48004989,2877.5,2876.1,3.1577]
[1644677484485,1.48004989,2877.4,2876.1,3.1577]
[1644677484685,0.17760481,2877.3,2876.1,3.1577]
[1644677484886,1.48004989,2877.2,2876.1,3.1577]
[1644677485094,0.00380481,2877.1,2876.1,3.1577]
[1644677485589,1.48385106,2877.2,2876.5,0.60002253]
[1644677485790,0.1738,2877.4,2876.5,0.60002253]
[1644677485791,0.1738,2877.4,2876.6,4.10428873]
[1644677485993,0.00380481,2877.1,2876.6,1.27409129]
[1644677486232,7.46,2877.8,2876.7,0.17209129]
[1644677486233,0.04416287,2877.3,2876.7,0.17209129]
[1644677486432,0.04416287,2877.3,2876.8,0.502]
[1644677486433,0.04035806,2877.3,2876.8,0.502]
[1644677486633,0.00380481,2877.6,2876.8,0.802]
[1644677486833,0.1556,2877.6,2876.8,0.802]
[1644677487034,0.19766333,2877.6,2876.8,1.102]
[1644677487237,0.00380481,2877.5,2876.8,1.102]
[1644677487441,0.04206333,2877.6,2876.9,6.44409129]
[1644677487644,0.65254604,2878.7,2877.0,0.1736]
[1644677487645,0.04092649,2877.4,2877.0,0.1736]
[1644677487835,0.00749444,2877.3,2877.2,6.272]
[1644677488035,0.0478525,2877.3,2877.2,7.074]
[1644677488234,0.0478525,2877.3,2877.2,8.91309564]
[1644677488435,0.0478525,2877.3,2877.2,9.08518693]
[1644677488635,0.04035806,2877.3,2877.2,9.08518693]
[1644677489239,0.04035806,2877.3,2877.2,8.91309564]
[1644677489743,0.04035806,2877.3,2877.2,4.70642402]
[1644677490689,0.04035806,2877.3,2877.2,5.34987274]
[1644677490890,0.04035806,2877.3,2877.2,6.34987274]
[1644677491093,0.17740481,2878.4,2877.4,0.0095]
[1644677491297,1.47963521,2878.3,2877.4,1.8049]
[1644677491497,0.03799705,2877.8,2877.5,6.774]
[1644677491691,0.03799705,2877.8,2877.5,6.94609129]
[1644677491892,0.03799705,2877.8,2877.6,1.0]
[1644677492090,0.03799705,2877.8,2877.7,1.02114176]
[1644677492292,0.00380481,2878.8,2877.8,3.3]
[1644677492490,0.00380481,2878.8,2877.9,0.502]
[1644677492690,0.03799579,2878.3,2877.9,1.502]
[1644677492898,0.03799579,2878.3,2877.9,2.27409129]
[1644677493093,0.03799579,2878.3,2877.9,2.55839129]
[1644677493296,0.03799579,2878.3,2877.9,0.7863]
[1644677493495,0.63555506,2878.9,2877.9,0.7863]
[1644677493496,0.1736,2878.8,2877.9,0.7863]
[1644677493738,0.1736,2878.8,2877.9,2.3179]
[1644677493739,1.48318962,2878.7,2877.9,2.3179]
[1644677494138,1.48318962,2878.7,2877.9,3.3179]
[1644677494139,1.47938481,2878.6,2877.9,3.3179]
[1644677494338,1.47938481,2878.5,2877.9,3.3179]
[1644677494539,0.00380481,2879.1,2877.9,4.02699821]
[1644677494739,1.48314485,2879.1,2877.9,2.0336]
[1644677494939,1.47934004,2879.0,2877.9,2.0336]
[1644677495142,0.00380481,2879.1,2877.9,2.0336]
[1644677495143,1.65674485,2878.9,2877.9,2.0336]
[1644677495342,1.47934004,2878.8,2877.9,2.0336]
[1644677495647,1.47934004,2878.8,2877.9,2.2072]
[1644677495648,1.47934004,2878.7,2877.9,2.2072]
[1644677495840,1.48314485,2878.6,2878.0,0.502]
[1644677496041,0.00380481,2879.1,2878.1,0.62235459]
[1644677496340,0.00949991,2878.5,2878.2,0.502]
[1644677496542,0.00949991,2878.5,2878.3,0.502]
[1644677496840,0.00949991,2878.5,2878.4,0.502]
[1644677497041,0.00380481,2879.1,2878.4,0.502]
[1644677497240,1.4793392,2878.5,2878.4,0.502]
[1644677497487,0.00949988,2878.5,2878.4,0.502]
[1644677497688,1.48883908,2878.5,2878.4,0.502]
[1644677497888,0.00949988,2878.5,2878.4,0.502]
[1644677498293,0.00156884,2878.6,2878.4,0.502]
[1644677498688,0.01106868,2878.6,2878.4,0.502]
[1644677499288,0.01106868,2878.6,2878.4,0.97409129]
[1644677499489,0.00156884,2878.6,2878.4,0.802]
[1644677499687,0.00156884,2878.6,2878.4,0.502]
[1644677499888,0.01106865,2878.6,2878.4,0.502]
[1644677500403,1.47925777,2878.5,2877.5,1.1404]
[1644677500595,0.00380481,2878.4,2877.5,1.1404]
[1644677500800,1.48306258,2878.4,2877.5,1.1404]
[1644677500994,0.00950009,2878.2,2877.7,0.0067961]
[1644677501437,0.00950009,2878.2,2877.8,0.17209129]
[1644677502039,0.00156884,2878.6,2877.6,0.802]
[1644677502237,0.00950016,2878.1,2877.7,0.0067961]
[1644677503038,0.00950016,2878.1,2877.6,0.502]
[1644677503240,0.0015675,2878.5,2877.6,0.502]
[1644677503447,0.00950023,2878.0,2877.7,0.0067961]
[1644677503644,1.47957379,2877.9,2877.7,0.0067961]
[1644677504246,0.00950023,2878.0,2877.7,0.0067961]
[1644677504444,0.00380481,2878.4,2877.2,0.1736]
[1644677504645,0.0095003,2877.9,2877.7,0.0067961]
[1644677504893,0.00801771,2877.6,2877.2,0.502]
[1644677505288,0.00801771,2877.6,2876.9,0.1736]
[1644677505485,0.00801771,2877.6,2876.8,0.502]
[1644677505992,0.00801771,2877.6,2877.1,0.57733083]
[1644677506391,0.00801771,2877.6,2876.9,0.1736]
[1644677507385,0.00801771,2877.6,2876.9,1.3333791]
[1644677507786,0.00801771,2877.6,2876.9,1.9333791]
[1644677508496,0.00801771,2877.6,2877.1,0.0067804]
[1644677508738,1.47976745,2877.5,2877.1,0.0067804]
[1644677508937,0.1736,2877.4,2877.1,0.0067804]
[1644677509137,1.47976745,2877.3,2876.5,0.25]
[1644677509342,5.0,2876.9,2875.5,0.1736]
[1644677509541,5.0,2876.9,2875.2,3.6738]
[1644677509542,1.48357226,2876.8,2875.2,3.6738]
[1644677509741,0.00380481,2876.8,2875.2,7.1738]
[1644677509940,1.48392247,2876.8,2875.2,7.1738]
[1644677510139,1.48392247,2876.8,2875.2,3.6738]
[1644677510539,1.48392247,2876.8,2875.2,0.1738]
[1644677510739,0.59904254,2876.1,2875.0,5.7705]
[1644677510940,0.59904254,2876.1,2874.9,0.502]
[1644677511145,0.1738,2876.0,2875.0,0.1738]
[1644677511338,0.59904254,2876.1,2874.8,0.1738]
[1644677511539,0.59904254,2876.1,2874.7,0.502]
[1644677511540,2.65,2876.0,2874.7,0.502]
[1644677511745,0.54647091,2875.2,2874.2,0.00667736]
[1644677511943,0.54647091,2875.2,2873.4,13.7468]
[1644677511944,1.32107091,2875.2,2873.5,0.752]
[1644677512141,0.1739,2875.1,2873.5,0.752]
[1644677512596,5.0,2874.9,2873.5,0.752]
[1644677512796,0.51049949,2874.1,2873.5,0.502]
[1644677512995,3.93603828,2874.8,2873.5,0.502]
[1644677513197,3.93603828,2874.8,2874.2,0.00677059]
[1644677513198,0.43603828,2874.8,2874.2,0.00677059]
[1644677514000,0.59983783,2874.1,2873.2,0.50727909]
[1644677514199,3.75694192,2874.7,2873.9,0.02708455]
[1644677514200,0.1739,2874.6,2873.9,0.02708455]
[1644677514799,3.92686194,2874.8,2873.9,0.02708455]
[1644677514800,0.1739,2874.7,2873.9,0.02708455]
[1644677515219,0.51397662,2874.5,2873.2,0.75727909]
[1644677515402,0.1739,2874.4,2874.2,0.00677059]
[1644677515803,0.1739,2874.4,2873.7,0.02708644]
[1644677515804,0.01354117,2873.9,2873.7,0.02708644]
[1644677516442,0.01354117,2873.9,2873.3,1.00355349]
[1644677516638,0.01354117,2873.9,2873.3,1.30355349]
[1644677516940,0.01354117,2873.9,2873.8,0.55953919]
[1644677517141,0.01354117,2873.9,2873.8,1.06153919]
[1644677517343,0.01354117,2873.9,2873.8,1.53363048]
[1644677517542,0.01354117,2873.9,2873.8,1.27409129]
[1644677518949,0.01354117,2873.9,2873.8,2.11165579]
[1644677519248,4.117e-05,2873.9,2873.8,1.44799129]
[1644677519443,4.117e-05,2873.9,2873.8,8.58970129]
[1644677519894,0.00307117,2874.7,2873.9,3.3]
[1644677519895,0.00161234,2874.7,2873.9,3.3]
[1644677520096,0.00161234,2874.7,2874.3,6.272]
[1644677520294,0.00161234,2874.7,2874.4,0.73474903]
[1644677520493,0.00161234,2874.7,2874.4,2.70884032]
[1644677520894,0.00161234,2874.7,2874.5,0.17209129]
[1644677521094,0.00161234,2874.7,2874.6,0.502]
[1644677521294,0.00161234,2874.7,2874.6,0.802]
[1644677521499,0.00161234,2874.7,2874.6,1.14799129]
[1644677522596,0.1739,2875.9,2874.6,1.14799129]
[1644677522795,0.03799674,2875.8,2874.6,1.2759]
[1644677523400,0.03799674,2875.8,2874.6,2.2759]
[1644677523641,0.1739,2875.9,2874.6,1.2759]
[1644677523832,0.03800246,2875.8,2874.6,1.2759]
[1644677524040,0.03800246,2875.8,2874.6,1.44799129]
[1644677524436,0.03800246,2875.8,2874.8,6.272]
[1644677524637,0.03800246,2875.8,2875.2,6.272]
[1644677524834,3.5,2877.2,2875.2,6.272]
[1644677524835,0.00380481,2876.6,2875.7,0.68727154]
[1644677525037,0.03800258,2875.9,2875.8,0.502]
[1644677525436,0.03800258,2875.9,2875.8,0.802]
[1644677525835,0.03800258,2875.9,2875.8,1.102]
[1644677526037,0.1738,2876.6,2875.8,1.102]
[1644677526237,0.04750142,2876.4,2875.8,1.102]
[1644677527237,0.00380481,2876.8,2875.8,1.102]
[1644677527488,0.00950104,2876.4,2875.8,1.102]
[1644677528188,0.00950104,2876.4,2875.8,0.502]
[1644677528388,0.13330104,2876.6,2875.5,0.00527909]
[1644677528587,0.00380481,2876.6,2875.5,0.00527909]
[1644677528787,0.00950104,2876.4,2875.5,0.00527909]
[1644677529591,0.00380481,2876.5,2875.5,0.50727909]
[1644677529791,0.01308431,2876.5,2875.6,0.00603844]
[1644677530190,0.0092795,2876.5,2875.6,0.00603844]
[1644677530589,0.1830795,2876.5,2875.6,0.30603844]
[1644677530790,0.1738,2876.5,2875.6,0.3]
[1644677530989,0.00927976,2876.5,2875.6,0.00603844]
[1644677531434,0.18307976,2876.5,2875.6,0.00603844]
[1644677531843,0.00927976,2876.5,2875.6,0.00603844]
[1644677532037,0.00927976,2876.5,2875.5,1.10727909]
[1644677532038,0.00380481,2876.6,2875.5,1.10727909]
[1644677532238,0.00927976,2876.5,2875.6,0.00603844]
[1644677532439,0.0013078,2876.3,2875.6,0.00603844]
[1644677533239,0.0013078,2876.3,2875.5,0.50727909]
[1644677533240,0.0013078,2876.3,2875.5,0.80727909]
[1644677533440,3.74118798,2876.8,2875.6,2.45]
[1644677533740,0.1738,2877.1,2875.7,2.85]
[1644677534140,0.1738,2877.1,2875.8,5.21566995]
[1644677534345,0.1738,2877.1,2875.8,5.38946995]
[1644677534540,0.1738,2877.1,2875.8,1.6758]
[1644677534991,0.1738,2877.1,2875.8,0.6758]
[1644677535190,0.1738,2877.1,2875.8,4.54277626]
[1644677535390,0.1738,2877.1,2875.9,1.0]
[1644677535690,0.1738,2877.1,2876.0,0.67409129]
[1644677536290,0.5157762,2877.0,2876.1,0.17209129]
[1644677536490,0.5157762,2877.0,2875.9,0.6]
[1644677536491,1.75,2877.0,2876.2,0.502]
[1644677536691,0.1738,2877.1,2875.9,0.36724893]
[1644677536896,0.1738,2877.1,2876.0,0.502]
[1644677537092,0.00950115,2876.7,2876.3,0.00679525]
[1644677537291,0.00950115,2876.7,2876.3,0.50879525]
[1644677537695,0.0107122,2876.7,2876.3,0.50879525]
[1644677538095,0.00121105,2876.7,2876.3,0.502]
[1644677538295,0.00950122,2876.6,2876.3,0.50879525]
[1644677539139,0.00121105,2876.7,2876.3,0.502]
[1644677539448,0.00950109,2876.6,2876.3,0.50879525]
[1644677540443,0.00121105,2876.7,2876.3,0.502]
[1644677540643,0.00121105,2876.7,2876.3,0.50879525]
[1644677540644,0.00950109,2876.6,2876.3,0.50879525]
[1644677541643,0.00121105,2876.7,2876.3,0.502]
[1644677541846,0.00950109,2876.6,2876.3,0.50879525]
[1644677542244,0.00115782,2876.5,2876.3,0.50879525]
[1644677543588,0.00950096,2876.6,2876.3,0.50879525]
[1644677543800,0.87114954,2877.2,2876.3,0.00679525]
[1644677543998,0.87114954,2877.2,2875.5,0.25527909]
[1644677543999,5.0,2877.0,2875.5,0.25527909]
[1644677544200,5.0,2877.0,2875.5,0.00527909]
[1644677544201,0.66769752,2876.0,2875.5,0.00527909]
[1644677544396,0.1738,2876.9,2875.5,0.00527909]
[1644677544600,1.65408435,2876.9,2875.5,0.60705133]
[1644677544893,1.48028435,2876.8,2875.5,0.60705133]
[1644677545097,0.1738,2876.7,2875.5,0.60705133]
[1644677545295,1.48028435,2876.6,2875.5,0.60705133]
[1644677545496,0.67780623,2876.4,2876.0,0.0068196]
[1644677545698,1.48031056,2876.3,2876.0,0.0068196]
[1644677545898,1.65411056,2876.3,2876.0,0.0068196]
[1644677546139,1.48030341,2876.2,2876.0,0.0068196]
[1644677546338,1.48030341,2876.2,2875.5,0.00527909]
[1644677546539,0.1738,2876.3,2875.5,0.59571701]
[1644677546839,0.1738,2876.3,2876.0,0.0068196]
[1644677547147,1.48031494,2876.2,2876.0,0.0068196]
[1644677547339,0.67780623,2876.4,2876.0,0.0068196]
[1644677547541,1.48031585,2876.3,2875.5,0.00527909]
[1644677547944,1.48031585,2876.3,2876.0,0.00681972]
[1644677548747,1.48031585,2876.3,2875.5,0.00527909]
[1644677549148,1.48031585,2876.3,2876.0,0.0068196]
[1644677549771,5.0,2876.1,2876.0,1.96e-05]
[1644677550001,0.0007804,2875.9,2874.5,8.7012]
[1644677550195,5.0,2875.8,2874.5,5.2012]
[1644677550396,1.65421585,2875.7,2874.5,5.2012]
[1644677550596,1.48031585,2875.6,2874.5,5.2012]
[1644677550794,0.1739,2875.5,2874.5,5.2012]
[1644677550994,1.48031585,2875.4,2874.5,5.2012]
[1644677551393,0.1739,2875.8,2874.5,5.2012]
[1644677551394,1.48031585,2875.3,2874.5,5.2012]
[1644677551594,0.1739,2875.8,2874.5,5.2012]
[1644677551595,0.1739,2875.8,2874.5,1.2017]
[1644677551796,0.1739,2875.8,2874.1,4.002]
[1644677551797,0.7037,2875.6,2874.2,3.7391]
[1644677551997,5.0,2875.4,2873.8,4.4911]
[1644677552200,1.6545177,2875.3,2873.8,5.0911]
[1644677552403,1.4806177,2875.2,2873.8,7.8077]
[1644677552597,0.60889373,2874.6,2873.8,7.97979129]
[1644677552902,0.60889373,2874.6,2873.6,1.1346]
[1644677553097,0.78279373,2874.6,2873.1,1.65409129]
[1644677553297,5.78279373,2874.6,2873.1,1.65409129]
[1644677553497,0.78279373,2874.6,2873.1,1.65409129]
[1644677553735,0.68959865,2874.0,2873.1,1.65409129]
[1644677553936,0.1739,2874.8,2873.7,0.006808]
[1644677554135,0.1739,2874.5,2873.7,0.006808]
[1644677554335,0.1739,2874.8,2873.7,0.006808]
[1644677554536,6.7304,2875.2,2873.7,0.17889929]
[1644677554743,6.1002,2875.3,2873.8,0.502]
[1644677554947,0.59082654,2874.7,2873.8,0.502]
[1644677555142,0.59082654,2874.7,2874.3,0.00537516]
[1644677556243,0.59082654,2874.7,2873.9,0.17209129]
[1644677556442,0.59082654,2874.7,2874.4,0.00537507]
[1644677556645,0.01075014,2874.1,2873.9,0.0215035]
[1644677557247,0.01075014,2874.1,2873.8,0.502]
[1644677559889,0.01075014,2874.1,2873.8,0.50879432]
[1644677560795,0.01075014,2874.1,2873.8,0.502]
[1644677561241,0.01075014,2874.1,2873.8,0.80879432]
[1644677561641,0.01075014,2874.1,2873.8,1.10879432]
[1644677562041,0.01182212,2874.1,2873.8,1.102]
[1644677562241,0.00103378,2874.0,2873.8,1.102]
[1644677562541,0.00103378,2874.0,2873.8,1.28088561]
[1644677563340,0.00103378,2874.0,2873.8,1.102]
[1644677563541,0.00103378,2874.0,2873.8,1.10879444]
[1644677564541,0.00103378,2874.0,2873.8,1.102]
[1644677564742,0.00103378,2874.0,2873.8,1.10879444]
[1644677565595,0.00103378,2874.0,2873.8,1.102]
[1644677565994,0.00103378,2874.0,2873.8,1.10879444]
[1644677566792,0.00103378,2874.0,2873.8,1.102]
[1644677567194,0.00103378,2874.0,2873.8,1.10879444]
[1644677567999,0.00103378,2874.0,2873.8,1.102]
[1644677568393,0.00103378,2874.0,2873.8,1.10879444]
[1644677569238,0.00103378,2874.0,2873.8,1.102]
[1644677569439,0.00103378,2874.0,2873.8,0.502]
[1644677569739,0.00103378,2874.0,2873.8,0.50879444]
[1644677570551,0.00103378,2874.0,2873.8,0.502]
[1644677570744,0.00103378,2874.0,2873.8,0.50879444]
[1644677571347,0.00103378,2874.0,2873.8,0.80879444]
[1644677571748,0.00103378,2874.0,2873.8,1.102]
[1644677571947,0.00103378,2874.0,2873.8,1.10879444]
[1644677572486,0.00103378,2874.0,2873.8,0.50879444]
[1644677572886,0.00103378,2874.0,2873.8,0.502]
[1644677573092,0.00103378,2874.0,2873.8,0.50879444]
[1644677574086,0.00103378,2874.0,2873.8,0.502]
[1644677574487,0.00103378,2874.0,2873.8,0.50879444]
[1644677574886,0.01075014,2874.1,2873.9,2.85]
[1644677575291,0.01075014,2874.1,2873.8,0.502]
[1644677575489,0.01075014,2874.1,2873.9,0.0067942]
[1644677576536,0.01075014,2874.1,2873.8,0.502]
[1644677576738,0.01075014,2874.1,2873.9,0.0067942]
[1644677577139,0.0135884,2873.8,2873.6,1.1514]
[1644677577339,0.0135884,2873.8,2873.4,0.02718088]
[1644677577640,0.0135884,2873.8,2873.2,2.54344085]
[1644677577837,0.0135884,2873.8,2873.2,0.1739]
[1644677578038,0.66452088,2873.8,2873.2,0.1739]
[1644677579239,0.66452088,2873.8,2873.4,0.00203861]
[1644677580103,0.66452088,2873.8,2872.9,4.07974085]
[1644677580305,0.66452088,2873.8,2873.5,0.00203854]